fUSD/lending_fUSD_20260228
["ID","MTS","AMOUNT","RATE_DAILY","PERIOD"]
[406871029,1772256631806,-214.0,7.584e-05,2]
[406871030,1772256631816,-151.0,7.636e-05,2]
[406871031,1772256631826,-217.11447409,7.638e-05,2]
[406871032,1772256631838,-982.88552591,7.638e-05,2]
[406871033,1772256631848,-150.0,7.638e-05,2]
[406871034,1772256631859,-285.0,7.638e-05,2]
[406871035,1772256631869,-2178.587,7.639e-05,2]
[406871036,1772256631879,-11999.86526018,7.639e-05,2]
[406871037,1772256631898,-689.16076813,7.639e-05,2]
[406871038,1772256631913,-22798.83637169,7.639e-05,2]
[406871039,1772256631923,-164.579,7.639e-05,2]
[406871040,1772256631932,-13793.4980332,7.639e-05,2]
[406871041,1772256631944,-7261.29898133,7.639e-05,2]
[406871058,1772256637884,-4852.39229244,7.639e-05,2]
[406871059,1772256637943,-1974092.81069303,7.639e-05,2]
[406871060,1772256637954,-250.0,7.66e-05,2]
[406871061,1772256637963,-299.34513275,7.707e-05,2]
[406871062,1772256637973,-500.0,7.738e-05,2]
[406871063,1772256637982,-454.0741727,7.738e-05,2]
[406871064,1772256637992,-500.0,7.738e-05,2]
[406871065,1772256638001,-500.0,7.738e-05,2]
[406871066,1772256638010,-500.0,7.738e-05,2]
[406871067,1772256638020,-500.0,7.738e-05,2]
[406871068,1772256638029,-500.0,7.738e-05,2]
[406871069,1772256638038,-500.0,7.738e-05,2]
[406871070,1772256638048,-500.0,7.738e-05,2]
[406871071,1772256638058,-500.0,7.738e-05,2]
[406871072,1772256638067,-500.0,7.738e-05,2]
[406871073,1772256638076,-500.0,7.738e-05,2]
[406871074,1772256638086,-288.25694279,7.738e-05,2]
[406871075,1772256638095,-500.0,7.738e-05,2]
[406871076,1772256638104,-500.0,7.738e-05,2]
[406871077,1772256638114,-500.0,7.738e-05,2]
[406871078,1772256638123,-500.0,7.738e-05,2]
[406871079,1772256638132,-500.0,7.738e-05,2]
[406871080,1772256638141,-500.0,7.738e-05,2]
[406871081,1772256638151,-177.06489404,7.8e-05,2]
[406871082,1772256638160,-514.78568718,7.8e-05,2]
[406871083,1772256638170,-895.85967799,7.8e-05,2]
[406871085,1772256638179,-1010.60732068,7.8e-05,2]
[406871087,1772256638189,-1154.07481881,7.8e-05,2]
[406871089,1772256638198,-7665.02,7.8e-05,2]
[406871090,1772256638208,-299.99,7.8e-05,2]
[406871091,1772256638217,-150.99,7.8e-05,2]
[406871092,1772256638227,-9999.99,7.8e-05,2]
[406871093,1772256638236,-13092.43,7.8e-05,2]
[406871094,1772256638246,-150.99,7.8e-05,2]
[406871095,1772256638255,-9999.99,7.8e-05,2]
[406871096,1772256638265,-313.13,7.8e-05,2]
[406871097,1772256638274,-659.5,7.8e-05,2]
[406871098,1772256638283,-499.99,7.8e-05,2]
[406871099,1772256638292,-1100.0,7.8e-05,2]
[406871100,1772256638302,-2200.0,7.9e-05,2]
[406871101,1772256638312,-22326.52,7.973e-05,2]
[406871102,1772256638322,-3300.0,8e-05,2]
[406871103,1772256638331,-4350.01,8.178e-05,2]
[406871104,1772256638340,-235.60659,8.219e-05,2]
[406871105,1772256638350,-150.0,8.289e-05,2]
[406871106,1772256638359,-150.0,8.289e-05,2]
[406871107,1772256638369,-200.0,8.289e-05,2]
[406871108,1772256638379,-150.0,8.289e-05,2]
[406871109,1772256638389,-200.0,8.289e-05,2]
[406871110,1772256638398,-201.64950343,8.289e-05,2]
[406871111,1772256638407,-248.36119576,8.289e-05,2]
[406871112,1772256638416,-250.0,8.342e-05,2]
[406871113,1772256638426,-195.0,8.342e-05,2]
[406871114,1772256638435,-773.65765177,8.342e-05,2]
[406871115,1772256638444,-279.00632355,8.344e-05,2]
[406871116,1772256638453,-250.0,8.344e-05,2]
[406871117,1772256638615,-730.0,8.378e-05,2]
[406871118,1772256638634,-392.0,8.395e-05,2]
[406871119,1772256638644,-1680.0,8.402e-05,2]
[406871120,1772256638653,-255.0,8.402e-05,2]
[406871121,1772256638663,-200.0,8.411e-05,2]
[406871122,1772256638672,-500.0,8.411e-05,2]
[406871123,1772256638682,-153.56612273,8.411e-05,2]
[406871124,1772256638691,-150.0,8.411e-05,2]
[406871125,1772256638701,-150.0,8.411e-05,2]
[406871126,1772256638710,-500.0,8.466e-05,2]
[406871127,1772256638719,-150.0,8.466e-05,2]
[406871128,1772256638728,-263.76700866,8.521e-05,2]
[406871129,1772256638738,-150.0,8.521e-05,2]
[406871130,1772256638747,-250.0,8.575e-05,2]
[406871131,1772256638757,-500.0,8.673e-05,2]
[406871132,1772256638766,-1600.0,8.685e-05,2]
[406871133,1772256638776,-562.95,8.731e-05,2]
[406871134,1772256638787,-1000.0,9.221e-05,2]
[406871135,1772256638797,-2351.0,9.242e-05,2]
[406871136,1772256638806,-433.0,9.242e-05,2]
[406871137,1772256638815,-1500.0,9.768e-05,2]
[406871138,1772256638825,-1600.0,9.771e-05,2]
[406871139,1772256638835,-978.70537872,0.0001,2]
[406871140,1772256638843,-151.0,0.0001,2]
[406871141,1772256638854,-151.0,0.0001,2]
[406871142,1772256638864,-151.0,0.0001,2]
[406871143,1772256638874,-151.0,0.0001,2]
[406871144,1772256638883,-151.0,0.0001,2]
[406871145,1772256638893,-151.0,0.0001,2]
[406871146,1772256638902,-151.0,0.0001,2]
[406871147,1772256638911,-151.0,0.0001,2]
[406871148,1772256638921,-151.0,0.0001,2]
[406871149,1772256638930,-151.0,0.0001,2]
[406871150,1772256638940,-151.0,0.0001,2]
[406871151,1772256638949,-151.0,0.0001,2]
[406871152,1772256638958,-151.0,0.0001,2]
[406871153,1772256638967,-151.0,0.0001,2]
[406871154,1772256638976,-151.0,0.0001,2]
[406871155,1772256638985,-151.0,0.0001,2]
[406871156,1772256638995,-151.0,0.0001,2]
[406871157,1772256639004,-151.0,0.0001,2]
[406871158,1772256639014,-151.0,0.0001,2]
[406871159,1772256639024,-151.0,0.0001,2]
[406871160,1772256639033,-1099.65151812,0.0001,2]
[406871161,1772256639043,-250.0,0.00010021,2]
[406871162,1772256639050,-200.0,0.00010026,2]
[406871163,1772256639058,-200.0,0.00010026,2]
[406871164,1772256639066,-200.0,0.00010026,2]
[406871165,1772256639074,-200.0,0.00010026,2]
[406871166,1772256639081,-200.0,0.00010026,2]
[406871167,1772256639089,-4000.0,0.00010027,2]
[406871168,1772256639098,-3292.0,0.00010166,2]
[406871169,1772256639106,-736.0,0.00010166,2]
[406871170,1772256639116,-4000.0,0.00010278,2]
[406871171,1772256639125,-225.89,0.000103,2]
[406871172,1772256639134,-500.0,0.000103,2]
[406871173,1772256639143,-500.0,0.000103,2]
[406871174,1772256639152,-749.34833525,0.000103,2]
[406871175,1772256639162,-500.0,0.000103,2]
[406871176,1772256639171,-500.0,0.000103,2]
[406871177,1772256639180,-500.0,0.000103,2]
[406871178,1772256639189,-500.0,0.000103,2]
[406871179,1772256639198,-500.0,0.000103,2]
[406871180,1772256639208,-500.0,0.000103,2]
[406871181,1772256639217,-500.0,0.000103,2]
[406871182,1772256639226,-500.0,0.000103,2]
[406871183,1772256639235,-500.0,0.000103,2]
[406871184,1772256639244,-500.0,0.000103,2]
[406871185,1772256639254,-500.0,0.000103,2]
[406871186,1772256639265,-500.0,0.000103,2]
[406871187,1772256639274,-500.0,0.000103,2]
[406871188,1772256639284,-500.0,0.000103,2]
[406871189,1772256639294,-500.0,0.000103,2]
[406871190,1772256639312,-500.0,0.000103,2]
[406871191,1772256639332,-500.0,0.000103,2]
[406871192,1772256639354,-500.0,0.000103,2]
[406871193,1772256639374,-750.65166475,0.000103,2]
[406871194,1772256639384,-500.0,0.000103,2]
[406871195,1772256639395,-500.0,0.000103,2]
[406871196,1772256639406,-500.0,0.000103,2]
[406871197,1772256639416,-500.0,0.000103,2]
[406871198,1772256639427,-500.0,0.000103,2]
[406871199,1772256639438,-500.0,0.000103,2]
[406871200,1772256639449,-500.0,0.000103,2]
[406871201,1772256639459,-500.0,0.000103,2]
[406871202,1772256639470,-500.0,0.000103,2]
[406871203,1772256639480,-500.0,0.000103,2]
[406871204,1772256639490,-500.0,0.000103,2]
[406871205,1772256639503,-500.0,0.000103,2]
[406871206,1772256639512,-500.0,0.000103,2]
[406871207,1772256639525,-500.0,0.000103,2]
[406871208,1772256639535,-500.0,0.000103,2]
[406871209,1772256639545,-500.0,0.000103,2]
[406871210,1772256639556,-500.0,0.000103,2]
[406871211,1772256639567,-500.0,0.000103,2]
[406871212,1772256639579,-500.0,0.000103,2]
[406871213,1772256639589,-500.0,0.000103,2]
[406871214,1772256639600,-500.0,0.000103,2]
[406871215,1772256639612,-500.0,0.000103,2]
[406871216,1772256639622,-500.0,0.000103,2]
[406871217,1772256639632,-500.0,0.000103,2]
[406871218,1772256639642,-500.0,0.000103,2]
[406871219,1772256639652,-500.0,0.000103,2]
[406871220,1772256639662,-900.0,0.000103,2]
[406871221,1772256639672,-500.0,0.000103,2]
[406871222,1772256639681,-750.65166475,0.000103,2]
[406871223,1772256639691,-2000.0,0.00010316,2]
[406871224,1772256639704,-4000.0,0.00010529,2]
[406871225,1772256639714,-225.89,0.00010574,2]
[406871226,1772256639723,-4000.0,0.00010779,2]
[406871227,1772256639734,-225.89,0.00010848,2]
[406871228,1772256639743,-1600.0,0.00010856,2]
[406871229,1772256639753,-2000.0,0.00010864,2]
[406871230,1772256639764,-350.991833,0.000109,2]
[406871231,1772256639779,-350.99183298,0.000109,2]
[406871232,1772256639792,-166.66,0.00010959,2]
[406871233,1772256639802,-4000.0,0.0001103,2]
[406871234,1772256639811,-166.66,0.00011068,2]
[406871235,1772256639821,-6076.36,0.00011075,2]
[406871236,1772256639831,-166.66,0.00011178,2]
[406871237,1772256639840,-479.0,0.00011182,2]
[406871238,1772256639852,-310.0,0.00011183,2]
[406871239,1772256639863,-166.66,0.00011288,2]
[406871240,1772256639872,-166.66,0.00011397,2]
[406871241,1772256639881,-230.143724,0.000114,2]
[406871242,1772256639891,-1274.134242,0.000114,2]
[406871243,1772256639900,-166.66,0.00011507,2]
[406871244,1772256639910,-1282.62,0.00011507,2]
[406871245,1772256639919,-238.22,0.00011633,2]
[406871246,1772256639928,-1600.0,0.00011942,2]
[406871247,1772256639938,-500.0,0.0001207,2]
[406871248,1772256639947,-500.0,0.0001207,2]
[406871249,1772256639956,-500.0,0.0001207,2]
[406871250,1772256639966,-500.0,0.0001207,2]
[406871251,1772256639975,-500.0,0.0001207,2]
[406871252,1772256639984,-500.0,0.0001207,2]
[406871253,1772256639999,-500.0,0.0001207,2]
[406871254,1772256640013,-500.0,0.0001207,2]
[406871255,1772256640027,-500.0,0.0001207,2]
[406871256,1772256640037,-500.0,0.0001207,2]
[406871257,1772256640046,-500.0,0.0001207,2]
[406871258,1772256640057,-500.0,0.0001207,2]
[406871259,1772256640067,-500.0,0.0001207,2]
[406871260,1772256640076,-500.0,0.0001207,2]
[406871261,1772256640086,-500.0,0.0001207,2]
[406871262,1772256640095,-500.0,0.0001207,2]
[406871263,1772256640105,-500.0,0.0001207,2]
[406871264,1772256640114,-500.0,0.0001207,2]
[406871265,1772256640123,-500.0,0.0001207,2]
[406871266,1772256640132,-500.0,0.0001207,2]
[406871267,1772256640141,-500.0,0.0001207,2]
[406871268,1772256640150,-500.0,0.0001207,2]
[406871269,1772256640166,-500.0,0.0001207,2]
[406871270,1772256640176,-500.0,0.0001207,2]
[406871271,1772256640189,-500.0,0.0001207,2]
[406871272,1772256640201,-500.0,0.0001207,2]
[406871273,1772256640213,-500.0,0.0001207,2]
[406871274,1772256640228,-500.0,0.0001207,2]
[406871275,1772256640240,-504.40204054,0.0001207,2]
[406871276,1772256640253,-500.0,0.0001207,2]
[406871277,1772256640265,-500.0,0.0001207,2]
[406871278,1772256640276,-500.0,0.0001207,2]
[406871279,1772256640287,-503.76298871,0.0001207,2]
[406871280,1772256640300,-500.0,0.0001207,2]
[406871281,1772256640312,-500.0,0.0001207,2]
[406871282,1772256640324,-500.0,0.0001207,2]
[406871283,1772256640337,-500.0,0.0001207,2]
[406871284,1772256640349,-500.0,0.0001207,2]
[406871285,1772256640362,-500.0,0.0001207,2]
[406871286,1772256640375,-500.0,0.0001207,2]
[406871287,1772256640386,-500.0,0.0001207,2]
[406871288,1772256640398,-500.0,0.0001207,2]
[406871289,1772256640410,-500.0,0.0001207,2]
[406871290,1772256640421,-500.0,0.0001207,2]
[406871291,1772256640434,-500.0,0.0001207,2]
[406871292,1772256640444,-500.0,0.0001207,2]
[406871293,1772256640455,-500.0,0.0001207,2]
[406871294,1772256640465,-500.0,0.0001207,2]
[406871295,1772256640477,-500.0,0.0001207,2]
[406871296,1772256640489,-500.0,0.0001207,2]
[406871297,1772256640500,-500.0,0.0001207,2]
[406871298,1772256640513,-670.0,0.0001207,2]
[406871299,1772256640526,-857.72157108,0.0001207,2]
[406871300,1772256640537,-500.0,0.0001207,2]
[406871301,1772256640550,-500.0,0.0001207,2]
[406871302,1772256640562,-500.0,0.0001207,2]
[406871303,1772256640574,-500.0,0.0001207,2]
[406871304,1772256640588,-500.0,0.0001207,2]
[406871305,1772256640600,-500.0,0.0001207,2]
[406871306,1772256640612,-500.0,0.0001207,2]
[406871307,1772256640623,-500.0,0.0001207,2]
[406871308,1772256640634,-500.0,0.0001207,2]
[406871309,1772256640644,-500.0,0.0001207,2]
[406871310,1772256640657,-500.0,0.0001207,2]
[406871311,1772256640669,-500.0,0.0001207,2]
[406871312,1772256640681,-152.54639426,0.0001207,2]
[406871313,1772256640694,-500.0,0.0001207,2]
[406871314,1772256640707,-29999.99,0.00012087,2]
[406871315,1772256640719,-9999.99,0.00012087,2]
[406871316,1772256640731,-915.2,0.00012087,2]
[406871317,1772256640744,-1188.2361866,0.00012956,2]
[406871318,1772256640755,-1600.0,0.00013027,2]
[406871319,1772256640767,-500.0,0.00013698,2]
[406871320,1772256640781,-500.0,0.00013698,2]
[406871321,1772256640794,-500.0,0.00013698,2]
[406871322,1772256640808,-500.0,0.00013698,2]
[406871323,1772256640822,-500.0,0.00013698,2]
[406871324,1772256640835,-500.0,0.00013698,2]
[406871325,1772256640848,-500.0,0.00013698,2]
[406871326,1772256640859,-329.64340271,0.00013698,2]
[406871327,1772256640870,-500.0,0.00013698,2]
[406871328,1772256640881,-500.0,0.00013698,2]
[406871329,1772256640891,-500.0,0.00013698,2]
[406871330,1772256640902,-500.0,0.00013698,2]
[406871331,1772256640913,-500.0,0.00013698,2]
[406871332,1772256640925,-500.0,0.00013698,2]
[406871333,1772256640936,-522.03594903,0.00013698,2]
[406871334,1772256640948,-500.0,0.00013698,2]
[406871335,1772256640963,-500.0,0.00013698,2]
[406871336,1772256640976,-500.0,0.00013698,2]
[406871337,1772256640988,-500.0,0.00013698,2]
[406871338,1772256640999,-161.88293327,0.00013698,2]
[406871339,1772256641009,-500.0,0.00013698,2]
[406871340,1772256641018,-500.0,0.00013698,2]
[406871341,1772256641028,-500.0,0.00013698,2]
[406871342,1772256641038,-500.0,0.00013698,2]
[406871343,1772256641049,-500.0,0.00013698,2]
[406871344,1772256641061,-500.0,0.00013698,2]
[406871345,1772256641072,-508.5684283,0.00013698,2]
[406871346,1772256641085,-500.0,0.00013698,2]
[406871347,1772256641096,-500.0,0.00013698,2]
[406871348,1772256641107,-500.0,0.00013698,2]
[406871349,1772256641119,-500.0,0.00013698,2]
[406871350,1772256641130,-500.0,0.00013698,2]
[406871351,1772256641141,-500.0,0.00013698,2]
[406871352,1772256641151,-500.0,0.00013698,2]
[406871353,1772256641167,-500.0,0.00013698,2]
[406871354,1772256641178,-500.0,0.00013698,2]
[406871355,1772256641189,-500.0,0.00013698,2]
[406871356,1772256641200,-500.0,0.00013698,2]
[406871357,1772256641211,-500.0,0.00013698,2]
[406871358,1772256641221,-270.1160722,0.00013698,2]
[406871359,1772256641232,-500.0,0.00013698,2]
[406871360,1772256641244,-500.0,0.00013698,2]
[406871361,1772256641255,-500.0,0.00013698,2]
[406871362,1772256641268,-500.0,0.00013698,2]
[406871363,1772256641280,-500.0,0.00013698,2]
[406871364,1772256641293,-500.0,0.00013698,2]
[406871365,1772256641304,-500.0,0.00013698,2]
[406871366,1772256641314,-500.0,0.00013698,2]
[406871367,1772256641326,-500.0,0.00013698,2]
[406871368,1772256641337,-500.0,0.00013698,2]
[406871369,1772256641348,-500.0,0.00013698,2]
[406871370,1772256641360,-500.0,0.00013698,2]
[406871371,1772256641371,-500.0,0.00013698,2]
[406871372,1772256641382,-500.0,0.00013698,2]
[406871373,1772256641394,-500.0,0.00013698,2]
[406871374,1772256641406,-500.0,0.00013698,2]
[406871375,1772256641419,-500.0,0.00013698,2]
[406871376,1772256641429,-500.0,0.00013698,2]
[406871377,1772256641441,-500.0,0.00013698,2]
[406871378,1772256641452,-500.0,0.00013698,2]
[406871379,1772256641462,-500.0,0.00013698,2]
[406871380,1772256641475,-500.0,0.00013698,2]
[406871381,1772256641486,-500.0,0.00013698,2]
[406871382,1772256641498,-500.0,0.00013698,2]
[406871383,1772256641509,-500.0,0.00013698,2]
[406871384,1772256641520,-500.0,0.00013698,2]
[406871385,1772256641531,-500.0,0.00013698,2]
[406871386,1772256641542,-500.0,0.00013698,2]
[406871387,1772256641554,-500.0,0.00013698,2]
[406871388,1772256641564,-500.0,0.00013698,2]
[406871389,1772256641575,-500.0,0.00013698,2]
[406871390,1772256641586,-500.0,0.00013698,2]
[406871391,1772256641597,-500.0,0.00013698,2]
[406871392,1772256641608,-500.0,0.00013698,2]
[406871393,1772256641619,-500.0,0.00013698,2]
[406871394,1772256641630,-500.0,0.00013698,2]
[406871395,1772256641641,-864.47,0.00013698,2]
[406871396,1772256641652,-864.47,0.00013698,2]
[406871397,1772256641663,-864.47,0.00013698,2]
[406871398,1772256641674,-864.47,0.00013698,2]
[406871399,1772256641686,-864.47,0.00013698,2]
[406871400,1772256641696,-864.47,0.00013698,2]
[406871401,1772256641708,-864.47,0.00013698,2]
[406871402,1772256641719,-864.47,0.00013698,2]
[406871403,1772256641730,-864.47,0.00013698,2]
[406871404,1772256641741,-864.47,0.00013698,2]
[406871405,1772256641751,-864.47,0.00013698,2]
[406871406,1772256641763,-864.47,0.00013698,2]
[406871407,1772256641773,-864.47,0.00013698,2]
[406871408,1772256641788,-864.47,0.00013698,2]
[406871409,1772256641798,-864.47,0.00013698,2]
[406871410,1772256641809,-864.47,0.00013698,2]
[406871411,1772256641820,-864.47,0.00013698,2]
[406871412,1772256641831,-500.0,0.00013698,2]
[406871413,1772256641842,-500.0,0.00013698,2]
[406871414,1772256641856,-500.0,0.00013698,2]
[406871415,1772256641866,-500.0,0.00013698,2]
[406871416,1772256641876,-500.0,0.00013698,2]
[406871417,1772256641887,-500.0,0.00013698,2]
[406871418,1772256641897,-500.0,0.00013698,2]
[406871419,1772256641907,-500.0,0.00013698,2]
[406871420,1772256641918,-830.3,0.00013698,2]
[406871421,1772256641928,-830.3,0.00013698,2]
[406871422,1772256641939,-830.3,0.00013698,2]
[406871423,1772256641948,-830.3,0.00013698,2]
[406871424,1772256641959,-830.3,0.00013698,2]
[406871425,1772256641969,-830.3,0.00013698,2]
[406871426,1772256641980,-830.3,0.00013698,2]
[406871427,1772256642163,-830.3,0.00013698,2]
[406871428,1772256642174,-500.0,0.00013698,2]
[406871429,1772256642184,-500.0,0.00013698,2]
[406871430,1772256642193,-500.0,0.00013698,2]
[406871431,1772256642203,-500.0,0.00013698,2]
[406871432,1772256642212,-500.0,0.00013698,2]
[406871433,1772256642221,-500.0,0.00013698,2]
[406871434,1772256642231,-500.0,0.00013698,2]
[406871435,1772256642240,-500.0,0.00013698,2]
[406871436,1772256642249,-500.0,0.00013698,2]
[406871437,1772256642259,-500.0,0.00013698,2]
[406871438,1772256642268,-500.0,0.00013698,2]
[406871439,1772256642277,-500.0,0.00013698,2]
[406871440,1772256642287,-500.0,0.00013698,2]
[406871441,1772256642296,-500.0,0.00013698,2]
[406871442,1772256642305,-512.80115338,0.00013698,2]
[406871443,1772256642315,-500.0,0.00013698,2]
[406871444,1772256642325,-500.0,0.00013698,2]
[406871445,1772256642334,-500.0,0.00013698,2]
[406871446,1772256642344,-500.0,0.00013698,2]
[406871447,1772256642354,-500.0,0.00013698,2]
[406871448,1772256642363,-500.0,0.00013698,2]
[406871449,1772256642372,-500.0,0.00013698,2]
[406871450,1772256642382,-500.0,0.00013698,2]
[406871451,1772256642391,-439.79063626,0.00013698,2]
[406871452,1772256642400,-601.46010123,0.00013698,2]
[406871453,1772256642410,-500.0,0.00013698,2]
[406871454,1772256642419,-500.0,0.00013698,2]
[406871455,1772256642428,-500.0,0.00013698,2]
[406871456,1772256642437,-500.0,0.00013698,2]
[406871457,1772256642447,-500.0,0.00013698,2]
[406871458,1772256642456,-500.0,0.00013698,2]
[406871459,1772256642466,-500.0,0.00013698,2]
[406871460,1772256642475,-500.0,0.00013698,2]
[406871461,1772256642485,-500.0,0.00013698,2]
[406871462,1772256642494,-624.58042463,0.00013698,2]
[406871463,1772256642504,-500.0,0.00013698,2]
[406871464,1772256642514,-500.0,0.00013698,2]
[406871465,1772256642525,-500.0,0.00013698,2]
[406871466,1772256642534,-500.0,0.00013698,2]
[406871467,1772256642544,-500.0,0.00013698,2]
[406871468,1772256642554,-500.0,0.00013698,2]
[406871469,1772256642563,-500.0,0.00013698,2]
[406871470,1772256642573,-500.0,0.00013698,2]
[406871471,1772256642582,-500.0,0.00013698,2]
[406871472,1772256642591,-500.0,0.00013698,2]
[406871473,1772256642600,-500.0,0.00013698,2]
[406871474,1772256642609,-500.0,0.00013698,2]
[406871475,1772256642618,-500.0,0.00013698,2]
[406871476,1772256642627,-500.0,0.00013698,2]
[406871477,1772256642636,-500.0,0.00013698,2]
[406871479,1772256642646,-500.0,0.00013698,2]
[406871480,1772256642655,-500.0,0.00013698,2]
[406871481,1772256642664,-500.0,0.00013698,2]
[406871482,1772256642674,-500.0,0.00013698,2]
[406871483,1772256642683,-500.0,0.00013698,2]
[406871485,1772256642693,-500.0,0.00013698,2]
[406871487,1772256642702,-219.67514616,0.00013698,2]
[406871489,1772256642711,-500.0,0.00013698,2]
[406871490,1772256642720,-500.0,0.00013698,2]
[406871491,1772256642729,-500.0,0.00013698,2]
[406871492,1772256642738,-500.0,0.00013698,2]
[406871493,1772256642747,-500.0,0.00013698,2]
[406871494,1772256642757,-500.0,0.00013698,2]
[406871495,1772256642766,-500.0,0.00013698,2]
[406871496,1772256642777,-500.0,0.00013698,2]
[406871497,1772256642788,-500.0,0.00013698,2]
[406871498,1772256642797,-500.0,0.00013698,2]
[406871499,1772256642806,-200.0,0.00013699,2]
[406871500,1772256642815,-843.23,0.00013699,2]
[406871501,1772256642827,-164.35592024,0.00013699,2]
[406871502,1772256642836,-288.64917037,0.00013699,2]
[406871503,1772256642845,-500.0,0.00013699,2]
[406871504,1772256642855,-500.0,0.00013699,2]
[406871505,1772256642864,-500.0,0.00013699,2]
[406871506,1772256642873,-500.0,0.00013699,2]
[406871507,1772256642882,-500.0,0.00013699,2]
[406871508,1772256642891,-500.0,0.00013699,2]
[406871509,1772256642900,-527.70889143,0.00013699,2]
[406871510,1772256642910,-500.0,0.00013699,2]
[406871511,1772256642920,-500.0,0.00013699,2]
[406871512,1772256642929,-500.0,0.00013699,2]
[406871513,1772256642940,-502.97347901,0.00013699,2]
[406871514,1772256642949,-501.57340438,0.00013699,2]
[406871515,1772256642958,-500.0,0.00013699,2]
[406871516,1772256642967,-500.59954832,0.00013699,2]
[406871517,1772256642977,-500.0,0.00013699,2]
[406871518,1772256642987,-500.0,0.00013699,2]
[406871519,1772256642995,-500.0,0.00013699,2]
[406871520,1772256643004,-500.0,0.00013699,2]
[406871521,1772256643013,-500.0,0.00013699,2]
[406871522,1772256643022,-500.81982724,0.00013699,2]
[406871523,1772256643031,-500.0,0.00013699,2]
[406871524,1772256643040,-500.0,0.00013699,2]
[406871525,1772256643050,-500.0,0.00013699,2]
[406871526,1772256643059,-500.0,0.00013699,2]
[406871527,1772256643068,-500.0,0.00013699,2]
[406871528,1772256643078,-500.0,0.00013699,2]
[406871529,1772256643087,-310.96112452,0.00013699,2]
[406871530,1772256643097,-500.0,0.00013699,2]
[406871531,1772256643106,-500.0,0.00013699,2]
[406871532,1772256643115,-500.0,0.00013699,2]
[406871533,1772256643124,-500.0,0.00013699,2]
[406871534,1772256643133,-500.0,0.00013699,2]
[406871535,1772256643142,-500.0,0.00013699,2]
[406871536,1772256643151,-350.99183296,0.00013706,2]
[406871537,1772256643161,-350.99183298,0.00013706,2]
[406871538,1772256643171,-4400.0,0.000139,5]
[406871539,1772256643180,-514.0,0.0001411,2]
[406871541,1772256643189,-1000.0,0.00014247,2]
[406871542,1772256643199,-1000.0,0.00014247,2]
[406871543,1772256643208,-1000.0,0.00014247,2]
[406871544,1772256643218,-1000.0,0.00014247,2]
[406871545,1772256643227,-687.41667409,0.00014247,2]
[406871546,1772256643236,-1000.0,0.00014247,2]
[406871547,1772256643245,-1000.0,0.00014247,2]
[406871548,1772256643254,-1000.0,0.00014247,2]
[406871549,1772256643263,-510.84264222,0.00014247,2]
[406871550,1772256643273,-1000.0,0.00014247,2]
[406871551,1772256643282,-513.58694386,0.00014247,2]
[406871552,1772256643291,-1000.0,0.00014247,2]